OrganisationNameLabel,OrganisationURI,EffectiveDate,Directorate/ServiceWhereExpenditureIncurred,ServiceCategoryLabel,ServiceCategoryURI,Supplier,SupplierRegisteredCompany Number,PaymentDate,TransactionNumber,NetAmount,IrrecoverableVAT,PurposeOfSpend,ProcurementClassification:ProclassLabel,ProcrementClassification:ProClassCode
South Lakeland District Council,http://opendatacommunities.org/id/district-council/south-lakeland,31/12/2021,Support Services,Other Items,,Lloyd Music Ltd,,13-12-2021,0000172485,250,0,Sedbergh Christmas Festival,291000,Arts & Leisure Services Events
South Lakeland District Council,http://opendatacommunities.org/id/district-council/south-lakeland,31/12/2021,Case Management Regulatory,Cultural Environmental Regulatory & Planning Services,http://opendatacommunities.org/def/concept/finance/sercop/objective/104,LANDMARK INFORMATION GROUP LIMITED,02892803,22-12-2021,0000173067,250,0,Licence for Historical National Grid,191700,Facilities Property Management
South Lakeland District Council,http://opendatacommunities.org/id/district-council/south-lakeland,31/12/2021,Assets and Commercial Services,Central Services,http://opendatacommunities.org/def/concept/finance/sercop/objective/102,LRM Security Ltd,,06-12-2021,0000172495,253.6,0,PO for LRM security till 2022,192213,Facilities Security Manned Guarding
South Lakeland District Council,http://opendatacommunities.org/id/district-council/south-lakeland,31/12/2021,Business Support Community Services,Cultural Environmental Regulatory & Planning Services,http://opendatacommunities.org/def/concept/finance/sercop/objective/104,CUMBRIA WASTE RECYCLING LTD,03162439,15-12-2021,0000172850,261.69,0,Skip emptying,182012,Environment Waste Management Recycling
South Lakeland District Council,http://opendatacommunities.org/id/district-council/south-lakeland,31/12/2021,Assets and Commercial Services,Central Services,http://opendatacommunities.org/def/concept/finance/sercop/objective/102,CUMBRIA WASTE RECYCLING LTD,03162439,15-12-2021,0000172798,265.32,0,PO to cover monthly collection of,182012,Environment Waste Management Recycling
South Lakeland District Council,http://opendatacommunities.org/id/district-council/south-lakeland,31/12/2021,Finance,Central Services,http://opendatacommunities.org/def/concept/finance/sercop/objective/102,CAPITA BUSINESS SERVICES LTD,02299747,01-12-2021,0000172376,270,0,As per quotation AMT11101v1,261500,HR Training & Conferences
South Lakeland District Council,http://opendatacommunities.org/id/district-council/south-lakeland,31/12/2021,Business Support Community Services,Cultural Environmental Regulatory & Planning Services,http://opendatacommunities.org/def/concept/finance/sercop/objective/104,ADECCO UK LIMITED,00593232,20-12-2021,0000172976,275.28,0,Agency staff 2021/22,261400,HR Temporary & Agency Staff
South Lakeland District Council,http://opendatacommunities.org/id/district-council/south-lakeland,31/12/2021,Business Support Community Services,Cultural Environmental Regulatory & Planning Services,http://opendatacommunities.org/def/concept/finance/sercop/objective/104,HYDRAIR TRUCK & TRAILER PARTS LTD,,15-12-2021,0000172752,279.72,0,Parts,381500,Vehicle Mgt Parts
South Lakeland District Council,http://opendatacommunities.org/id/district-council/south-lakeland,31/12/2021,Assets and Commercial Services,External Trading Accounts,,Ulverston Properties Limited,,15-12-2021,0000172591,281.67,0,Rental fees for Room 106 ulverston,190000,Facilities & Management Services
South Lakeland District Council,http://opendatacommunities.org/id/district-council/south-lakeland,31/12/2021,Support Services,Central Services,http://opendatacommunities.org/def/concept/finance/sercop/objective/102,THOMSON REUTERS (PROFESSIONAL) UK LTD,01679046,20-12-2021,0000172820,288,0,Schofield's Election Law PR R61,202100,Financial Services Subscriptions
South Lakeland District Council,http://opendatacommunities.org/id/district-council/south-lakeland,31/12/2021,Case Management Account Mgmt,Cultural Environmental Regulatory & Planning Services,http://opendatacommunities.org/def/concept/finance/sercop/objective/104,Teleshore (UK) Ltd,03008261,13-12-2021,0000172706,290.95,0,Banding Machine for Memorial Inspections,121000,Cemetery & Crematorium Burial & Crem
South Lakeland District Council,http://opendatacommunities.org/id/district-council/south-lakeland,31/12/2021,Case Management Account Mgmt,Cultural Environmental Regulatory & Planning Services,http://opendatacommunities.org/def/concept/finance/sercop/objective/104,DESIGNWORKS,,06-12-2021,0000172441,294,0,Website hosting for Mintworks,191100,Facilities Design & Photography
South Lakeland District Council,http://opendatacommunities.org/id/district-council/south-lakeland,31/12/2021,Business Support Community Services,Cultural Environmental Regulatory & Planning Services,http://opendatacommunities.org/def/concept/finance/sercop/objective/104,HYDRAIR TRUCK & TRAILER PARTS LTD,,06-12-2021,0000172394,305.9,0,Parts,381500,Vehicle Mgt Parts
South Lakeland District Council,http://opendatacommunities.org/id/district-council/south-lakeland,31/12/2021,Case Management Regulatory,Cultural Environmental Regulatory & Planning Services,http://opendatacommunities.org/def/concept/finance/sercop/objective/104,NEWSQUEST MEDIA GROUP LTD,03102566,15-12-2021,0000172342,314.16,0,Public notices for planning applications,191000,Facilities Advertising
South Lakeland District Council,http://opendatacommunities.org/id/district-council/south-lakeland,31/12/2021,Assets and Commercial Services,Cultural Environmental Regulatory & Planning Services,http://opendatacommunities.org/def/concept/finance/sercop/objective/104,ARCO LIMITED,00133804,06-12-2021,0000170931,315.36,0,7 x L Polo Shirt with logo,141100,Clothing Protective
South Lakeland District Council,http://opendatacommunities.org/id/district-council/south-lakeland,31/12/2021,Business Support Community Services,Cultural Environmental Regulatory & Planning Services,http://opendatacommunities.org/def/concept/finance/sercop/objective/104,GARWOOD EUROPE LTD,04333504,20-12-2021,0000172963,315.96,0,Parts,182011,Environment Waste Management Consumables
South Lakeland District Council,http://opendatacommunities.org/id/district-council/south-lakeland,31/12/2021,Case Management Regulatory,Cultural Environmental Regulatory & Planning Services,http://opendatacommunities.org/def/concept/finance/sercop/objective/104,RTPI SUBSCRIPTIONS,,15-12-2021,0000172885,321,0,Royal Town Planning Institute,391100,Construction Buildings
South Lakeland District Council,http://opendatacommunities.org/id/district-council/south-lakeland,31/12/2021,Business Support Community Services,Cultural Environmental Regulatory & Planning Services,http://opendatacommunities.org/def/concept/finance/sercop/objective/104,FAUN ZOELLER (UK) LTD,00751804,13-12-2021,0000172693,324.33,0,Repairs,381400,Vehicle Mgt Maintenance
South Lakeland District Council,http://opendatacommunities.org/id/district-council/south-lakeland,31/12/2021,Case Management Regulatory,Central Services,http://opendatacommunities.org/def/concept/finance/sercop/objective/102,The Oyster Partnership,05020374,22-12-2021,0000173044,332.52,0,Agency Officer - Planning,261300,HR Recruitment & Assessment
South Lakeland District Council,http://opendatacommunities.org/id/district-council/south-lakeland,31/12/2021,Business Support Community Services,Cultural Environmental Regulatory & Planning Services,http://opendatacommunities.org/def/concept/finance/sercop/objective/104,ARCO LIMITED,00133804,22-12-2021,0000172933,334.08,0,Cleaning materials,141100,Clothing Protective
South Lakeland District Council,http://opendatacommunities.org/id/district-council/south-lakeland,31/12/2021,Case Management,Central Services,http://opendatacommunities.org/def/concept/finance/sercop/objective/102,MORGAN HUNT UK LIMITED,04349535,20-12-2021,0000172590,340.49,0,(Revenues Contractor),269999,HR Not Elsewhere Classified
South Lakeland District Council,http://opendatacommunities.org/id/district-council/south-lakeland,31/12/2021,Case Management People,Central Services,http://opendatacommunities.org/def/concept/finance/sercop/objective/102,CHARTERED INSTITUTE OF HOUSING,,22-12-2021,0000173069,344,0,Membership renewal 2022,202100,Financial Services Subscriptions
South Lakeland District Council,http://opendatacommunities.org/id/district-council/south-lakeland,31/12/2021,Case Management Account Mgmt,Cultural Environmental Regulatory & Planning Services,http://opendatacommunities.org/def/concept/finance/sercop/objective/104,Bergen Arbortech,,22-12-2021,0000172574,349,0,Storm Arwen call-outs BTS 03-12-2021,241210,Horticultural Tree Trimming
South Lakeland District Council,http://opendatacommunities.org/id/district-council/south-lakeland,31/12/2021,Business Support Community Services,Cultural Environmental Regulatory & Planning Services,http://opendatacommunities.org/def/concept/finance/sercop/objective/104,ARCO LIMITED,00133804,22-12-2021,0000172934,357,0,Cleaning materials,141100,Clothing Protective
South Lakeland District Council,http://opendatacommunities.org/id/district-council/south-lakeland,31/12/2021,Business Support Community Services,Cultural Environmental Regulatory & Planning Services,http://opendatacommunities.org/def/concept/finance/sercop/objective/104,Licence Bureau Ltd,04819897,06-12-2021,0000172378,359,0,Licence checks 2020/21,380000,Vehicle Management
South Lakeland District Council,http://opendatacommunities.org/id/district-council/south-lakeland,31/12/2021,Business Support Community Services,Cultural Environmental Regulatory & Planning Services,http://opendatacommunities.org/def/concept/finance/sercop/objective/104,AUTOMOTIVE GLAZING SOLUTIONS,05922870,01-12-2021,0000172393,360,0,Repairs,381400,Vehicle Mgt Maintenance
South Lakeland District Council,http://opendatacommunities.org/id/district-council/south-lakeland,31/12/2021,Business Support Community Services,Central Services,http://opendatacommunities.org/def/concept/finance/sercop/objective/102,DENNIS EAGLE LTD,03794455,13-12-2021,0000172747,366,0,26.0t RCV per ESPO Framework 215_9,381300,Vehicle Mgt Industrial
South Lakeland District Council,http://opendatacommunities.org/id/district-council/south-lakeland,31/12/2021,Business Support Community Services,Cultural Environmental Regulatory & Planning Services,http://opendatacommunities.org/def/concept/finance/sercop/objective/104,GREENCHEM SOLUTIONS LTD,05175801,20-12-2021,0000172914,375,0,AdBlue,189999,Environmental Services Not Elsewhere Cla
South Lakeland District Council,http://opendatacommunities.org/id/district-council/south-lakeland,31/12/2021,Human Resources,Central Services,http://opendatacommunities.org/def/concept/finance/sercop/objective/102,ADECCO UK LIMITED,00593232,15-12-2021,0000172783,386.57,0,Democratic Administrator - R,261400,HR Temporary & Agency Staff
South Lakeland District Council,http://opendatacommunities.org/id/district-council/south-lakeland,31/12/2021,Case Management Account Mgmt,Central Services,http://opendatacommunities.org/def/concept/finance/sercop/objective/102,PITNEY BOWES LTD,00182037,20-12-2021,0000172589,394.5,0,Stock envelopes 2021-22,301200,Mail Services� Postage
South Lakeland District Council,http://opendatacommunities.org/id/district-council/south-lakeland,31/12/2021,Case Management Account Mgmt,Central Services,http://opendatacommunities.org/def/concept/finance/sercop/objective/102,ROSEFOX PAPER LIMITED,01655083,08-12-2021,0000172420,405.62,0,270mic SRA3 Nevertear,341000,Stationery Paper
South Lakeland District Council,http://opendatacommunities.org/id/district-council/south-lakeland,31/12/2021,Case Management People,Housing Services,http://opendatacommunities.org/def/concept/finance/sercop/objective/108,Landlord,,06-12-2021,0000172396,415,0,Monthly rent,250010,Housing Letting Agents
South Lakeland District Council,http://opendatacommunities.org/id/district-council/south-lakeland,31/12/2021,Case Management People,Housing Services,http://opendatacommunities.org/def/concept/finance/sercop/objective/108,Landlord,,15-12-2021,0000172867,415,0,Monthly rent,250010,Housing Letting Agents
South Lakeland District Council,http://opendatacommunities.org/id/district-council/south-lakeland,31/12/2021,Business Support Community Services,Cultural Environmental Regulatory & Planning Services,http://opendatacommunities.org/def/concept/finance/sercop/objective/104,REEN Technologies Limited,9347391,15-12-2021,0000172669,416,0,Subscriptions,261517,ICT-Consultancy
South Lakeland District Council,http://opendatacommunities.org/id/district-council/south-lakeland,31/12/2021,ICT Group,Central Services,http://opendatacommunities.org/def/concept/finance/sercop/objective/102,NEC Software Solutions UK Ltd,,20-12-2021,0000169711,416.67,0,I@W/ Email Connect -,271600,ICT Software Customised & Bespoke
South Lakeland District Council,http://opendatacommunities.org/id/district-council/south-lakeland,31/12/2021,Business Support Community Services,Cultural Environmental Regulatory & Planning Services,http://opendatacommunities.org/def/concept/finance/sercop/objective/104,ADECCO UK LIMITED,00593232,13-12-2021,0000172692,417.36,0,Agency staff 2021/22,261400,HR Temporary & Agency Staff
South Lakeland District Council,http://opendatacommunities.org/id/district-council/south-lakeland,31/12/2021,Business Support Community Services,Cultural Environmental Regulatory & Planning Services,http://opendatacommunities.org/def/concept/finance/sercop/objective/104,ADECCO UK LIMITED,00593232,13-12-2021,0000172702,417.36,0,Agency staff 2021/22,261400,HR Temporary & Agency Staff
South Lakeland District Council,http://opendatacommunities.org/id/district-council/south-lakeland,31/12/2021,Westmorland Centre Parking Office,Highways & Transport Services,http://opendatacommunities.org/def/concept/finance/sercop/objective/107,Security Plus   Limited,,20-12-2021,0000172956,425,0,Bulk cash collection April 2021-March,209999,Financial Services Not Elsewhere Classif
South Lakeland District Council,http://opendatacommunities.org/id/district-council/south-lakeland,31/12/2021,Business Support Community Services,Cultural Environmental Regulatory & Planning Services,http://opendatacommunities.org/def/concept/finance/sercop/objective/104,ADECCO UK LIMITED,00593232,13-12-2021,0000172687,426.24,0,Agency staff 2021/22,261400,HR Temporary & Agency Staff
South Lakeland District Council,http://opendatacommunities.org/id/district-council/south-lakeland,31/12/2021,Business Support Community Services,Cultural Environmental Regulatory & Planning Services,http://opendatacommunities.org/def/concept/finance/sercop/objective/104,ARCO LIMITED,00133804,13-12-2021,0000172740,428.15,0,Cleaning materials,141100,Clothing Protective
South Lakeland District Council,http://opendatacommunities.org/id/district-council/south-lakeland,31/12/2021,Human Resources,Central Services,http://opendatacommunities.org/def/concept/finance/sercop/objective/102,ADECCO UK LIMITED,00593232,20-12-2021,0000172962,431.52,0,Democratic Administrator - R,261400,HR Temporary & Agency Staff
South Lakeland District Council,http://opendatacommunities.org/id/district-council/south-lakeland,31/12/2021,Westmorland Centre Parking Office,Highways & Transport Services,http://opendatacommunities.org/def/concept/finance/sercop/objective/107,ADECCO UK LIMITED,00593232,20-12-2021,0000172782,440.4,0,Agency staff to cover parking assistant,261400,HR Temporary & Agency Staff
South Lakeland District Council,http://opendatacommunities.org/id/district-council/south-lakeland,31/12/2021,Business Support Community Services,Cultural Environmental Regulatory & Planning Services,http://opendatacommunities.org/def/concept/finance/sercop/objective/104,Harry Park Tyres Ltd,08131208,15-12-2021,0000172893,442.5,0,Tyres,381500,Vehicle Mgt Parts
South Lakeland District Council,http://opendatacommunities.org/id/district-council/south-lakeland,31/12/2021,Support Services,Cultural Environmental Regulatory & Planning Services,http://opendatacommunities.org/def/concept/finance/sercop/objective/104,WiFi Spark Ltd,,13-12-2021,0000172772,442.58,0,Kendal Wifi Maintenance,271800,ICT Telecommunications Mobile
South Lakeland District Council,http://opendatacommunities.org/id/district-council/south-lakeland,31/12/2021,Business Support Community Services,Cultural Environmental Regulatory & Planning Services,http://opendatacommunities.org/def/concept/finance/sercop/objective/104,ELIS UK LTD,00228604,06-12-2021,0000172500,450.44,0,Workwear hire 01/04/21 - 31/03/22,161000,Domestic Goods Commercial
South Lakeland District Council,http://opendatacommunities.org/id/district-council/south-lakeland,31/12/2021,Business Support Community Services,Cultural Environmental Regulatory & Planning Services,http://opendatacommunities.org/def/concept/finance/sercop/objective/104,ADECCO UK LIMITED,00593232,13-12-2021,0000172688,454.2,0,Agency staff 2021/22,261400,HR Temporary & Agency Staff
South Lakeland District Council,http://opendatacommunities.org/id/district-council/south-lakeland,31/12/2021,Business Support Community Services,Cultural Environmental Regulatory & Planning Services,http://opendatacommunities.org/def/concept/finance/sercop/objective/104,ADECCO UK LIMITED,00593232,15-12-2021,0000172845,454.2,0,Agency staff 2021/22,261400,HR Temporary & Agency Staff
South Lakeland District Council,http://opendatacommunities.org/id/district-council/south-lakeland,31/12/2021,Business Support Community Services,Cultural Environmental Regulatory & Planning Services,http://opendatacommunities.org/def/concept/finance/sercop/objective/104,ADECCO UK LIMITED,00593232,15-12-2021,0000172855,454.2,0,Agency staff 2021/22,261400,HR Temporary & Agency Staff
South Lakeland District Council,http://opendatacommunities.org/id/district-council/south-lakeland,31/12/2021,Case Management Regulatory,Cultural Environmental Regulatory & Planning Services,http://opendatacommunities.org/def/concept/finance/sercop/objective/104,NEWSQUEST MEDIA GROUP LTD,03102566,20-12-2021,0000172858,459.9,0,Public Notice online advertisement,191000,Facilities Advertising
South Lakeland District Council,http://opendatacommunities.org/id/district-council/south-lakeland,31/12/2021,Business Support Community Services,Cultural Environmental Regulatory & Planning Services,http://opendatacommunities.org/def/concept/finance/sercop/objective/104,Romaquip UK,,01-12-2021,0000172379,459.93,0,Repairs,381000,Vehicle Mgt Commercial
South Lakeland District Council,http://opendatacommunities.org/id/district-council/south-lakeland,31/12/2021,Westmorland Centre Parking Office,Highways & Transport Services,http://opendatacommunities.org/def/concept/finance/sercop/objective/107,Orbility,,13-12-2021,0000172572,462,0,Repairs to Entry barrier 2,111200,Catering Food & Beverages
South Lakeland District Council,http://opendatacommunities.org/id/district-council/south-lakeland,31/12/2021,Business Support Community Services,Cultural Environmental Regulatory & Planning Services,http://opendatacommunities.org/def/concept/finance/sercop/objective/104,ADECCO UK LIMITED,00593232,13-12-2021,0000172689,469.34,0,Agency staff 2021/22,261400,HR Temporary & Agency Staff
South Lakeland District Council,http://opendatacommunities.org/id/district-council/south-lakeland,31/12/2021,Business Support Community Services,Cultural Environmental Regulatory & Planning Services,http://opendatacommunities.org/def/concept/finance/sercop/objective/104,ARCO LIMITED,00133804,06-12-2021,0000172454,473.65,0,Cleaning materials,141100,Clothing Protective
South Lakeland District Council,http://opendatacommunities.org/id/district-council/south-lakeland,31/12/2021,Westmorland Centre Parking Office,Highways & Transport Services,http://opendatacommunities.org/def/concept/finance/sercop/objective/107,ADECCO UK LIMITED,00593232,20-12-2021,0000172961,484.44,0,Agency staff to cover parking assistant,261400,HR Temporary & Agency Staff
South Lakeland District Council,http://opendatacommunities.org/id/district-council/south-lakeland,31/12/2021,Business Support Community Services,Cultural Environmental Regulatory & Planning Services,http://opendatacommunities.org/def/concept/finance/sercop/objective/104,J R B ENTERPRISE,,22-12-2021,0000173022,495.5,0,Bags (economy vest type,182011,Environment Waste Management Consumables
South Lakeland District Council,http://opendatacommunities.org/id/district-council/south-lakeland,31/12/2021,Case Management Regulatory,Central Services,http://opendatacommunities.org/def/concept/finance/sercop/objective/102,CUMBRIA COUNTY COUNCIL,,13-12-2021,0000172126,500,0,LOCAL LAND CHARGE SEARCH ENQUIRIES,908000,Public Bodies Council support services
South Lakeland District Council,http://opendatacommunities.org/id/district-council/south-lakeland,31/12/2021,ICT Group,Central Services,http://opendatacommunities.org/def/concept/finance/sercop/objective/102,IT PROFESSIONAL SERVICES (ITPS),,20-12-2021,0000172487,500,0,ThinkSystem 32GB TruDDR4 2666 MHz (2Rx4,279999,ICT Not Elsewhere Classified
South Lakeland District Council,http://opendatacommunities.org/id/district-council/south-lakeland,31/12/2021,Case Management Account Mgmt,Cultural Environmental Regulatory & Planning Services,http://opendatacommunities.org/def/concept/finance/sercop/objective/104,CUMBRIA COUNTY COUNCIL,,13-12-2021,0000172554,500,0,Contribution to the Lakes Line,908000,Public Bodies Council support services
South Lakeland District Council,http://opendatacommunities.org/id/district-council/south-lakeland,31/12/2021,Case Management Account Mgmt,Cultural Environmental Regulatory & Planning Services,http://opendatacommunities.org/def/concept/finance/sercop/objective/104,YOUNG ENTERPRISE,,13-12-2021,0000172582,500,0,Young Enterprise Awards,201700,Financial Services Grants
South Lakeland District Council,http://opendatacommunities.org/id/district-council/south-lakeland,31/12/2021,Case Management Account Mgmt,Cultural Environmental Regulatory & Planning Services,http://opendatacommunities.org/def/concept/finance/sercop/objective/104,CUMBRIA MAILING SERVICES LTD,03136821,20-12-2021,0000172592,500,0,SLDC business premises survey mail out,301200,Mail Services� Postage
South Lakeland District Council,http://opendatacommunities.org/id/district-council/south-lakeland,31/12/2021,Assets and Commercial Services,Central Services,http://opendatacommunities.org/def/concept/finance/sercop/objective/102,Kinto Uk Limited,00837940,06-12-2021,0000172370,501.77,0,PO to cover 2x maintenance team,381000,Vehicle Mgt Commercial
South Lakeland District Council,http://opendatacommunities.org/id/district-council/south-lakeland,31/12/2021,Assets and Commercial Services,Central Services,http://opendatacommunities.org/def/concept/finance/sercop/objective/102,Kinto Uk Limited,00837940,06-12-2021,0000172371,501.77,0,PO to cover 2x maintenance team,381000,Vehicle Mgt Commercial
South Lakeland District Council,http://opendatacommunities.org/id/district-council/south-lakeland,31/12/2021,Business Support Community Services,Cultural Environmental Regulatory & Planning Services,http://opendatacommunities.org/def/concept/finance/sercop/objective/104,DENNIS EAGLE LTD,03794455,06-12-2021,0000172497,513.02,0,Parts,381300,Vehicle Mgt Industrial
South Lakeland District Council,http://opendatacommunities.org/id/district-council/south-lakeland,31/12/2021,Business Support Community Services,Cultural Environmental Regulatory & Planning Services,http://opendatacommunities.org/def/concept/finance/sercop/objective/104,DENNIS EAGLE LTD,03794455,15-12-2021,0000172830,518.36,0,Parts,381300,Vehicle Mgt Industrial
South Lakeland District Council,http://opendatacommunities.org/id/district-council/south-lakeland,31/12/2021,Business Support Community Services,Cultural Environmental Regulatory & Planning Services,http://opendatacommunities.org/def/concept/finance/sercop/objective/104,ARCO LIMITED,00133804,06-12-2021,0000172452,518.7,0,Cleaning materials,141100,Clothing Protective
South Lakeland District Council,http://opendatacommunities.org/id/district-council/south-lakeland,31/12/2021,Case Management People,SLDC as Agent,,CIVICA UK LTD,01628868,15-12-2021,0000172349,526.03,0,Contract extensions to 31/12/2021,271600,ICT Software Customised & Bespoke
South Lakeland District Council,http://opendatacommunities.org/id/district-council/south-lakeland,31/12/2021,Case Management People,Housing Services,http://opendatacommunities.org/def/concept/finance/sercop/objective/108,Landlord,,06-12-2021,0000172395,536.98,0,Monthly rent ,250000,Housing
South Lakeland District Council,http://opendatacommunities.org/id/district-council/south-lakeland,31/12/2021,Case Management People,Housing Services,http://opendatacommunities.org/def/concept/finance/sercop/objective/108,Landlord,,15-12-2021,0000172868,536.98,0,Monthly rent ,250000,Housing
South Lakeland District Council,http://opendatacommunities.org/id/district-council/south-lakeland,31/12/2021,Business Support Community Services,Central Services,http://opendatacommunities.org/def/concept/finance/sercop/objective/102,Supreme Labelling Ltd,,13-12-2021,0000172696,537,0,Round vinyl dog stickers,191600,Facilities Printing
South Lakeland District Council,http://opendatacommunities.org/id/district-council/south-lakeland,31/12/2021,Business Support Community Services,Cultural Environmental Regulatory & Planning Services,http://opendatacommunities.org/def/concept/finance/sercop/objective/104,CUMBRIA WASTE RECYCLING LTD,03162439,15-12-2021,0000172849,546,0,Skip emptying,182012,Environment Waste Management Recycling
South Lakeland District Council,http://opendatacommunities.org/id/district-council/south-lakeland,31/12/2021,Business Support Community Services,Cultural Environmental Regulatory & Planning Services,http://opendatacommunities.org/def/concept/finance/sercop/objective/104,ADECCO UK LIMITED,00593232,15-12-2021,0000172846,550.56,0,Agency staff 2021/22,261400,HR Temporary & Agency Staff
South Lakeland District Council,http://opendatacommunities.org/id/district-council/south-lakeland,31/12/2021,Support Services,Non-Service Payments,,Bravo Benefits Ltd,06758298,06-12-2021,0000172525,560,0,Chidl Care Vouchers 20/21,202100,Financial Services Subscriptions
South Lakeland District Council,http://opendatacommunities.org/id/district-council/south-lakeland,31/12/2021,Business Support Community Services,Cultural Environmental Regulatory & Planning Services,http://opendatacommunities.org/def/concept/finance/sercop/objective/104,ADECCO UK LIMITED,00593232,13-12-2021,0000172703,567.75,0,Agency staff 2021/22,261400,HR Temporary & Agency Staff
South Lakeland District Council,http://opendatacommunities.org/id/district-council/south-lakeland,31/12/2021,Case Management Account Mgmt,Central Services,http://opendatacommunities.org/def/concept/finance/sercop/objective/102,CFH Docmail Ltd,01716891,13-12-2021,0000172583,572.45,0,Annual billing Revenues Postage Whistl,300000,Mail Services
South Lakeland District Council,http://opendatacommunities.org/id/district-council/south-lakeland,31/12/2021,Case Management,Central Services,http://opendatacommunities.org/def/concept/finance/sercop/objective/102,MORGAN HUNT UK LIMITED,04349535,20-12-2021,0000172590,597.46,0,(Revenues Contractor),269999,HR Not Elsewhere Classified
South Lakeland District Council,http://opendatacommunities.org/id/district-council/south-lakeland,31/12/2021,Support Services,Cultural Environmental Regulatory & Planning Services,http://opendatacommunities.org/def/concept/finance/sercop/objective/104,NEWSQUEST MEDIA GROUP LTD,03102566,13-12-2021,0000172464,600,0,Advertising costs for the In Cumbria,191000,Facilities Advertising
South Lakeland District Council,http://opendatacommunities.org/id/district-council/south-lakeland,31/12/2021,Case Management Account Mgmt,SLDC as Agent,,Bay Media Ltd,3788497,08-12-2021,0000172597,600,0,Renewal of the maintenance and,291000,Arts & Leisure Services Events
South Lakeland District Council,http://opendatacommunities.org/id/district-council/south-lakeland,31/12/2021,Human Resources,Central Services,http://opendatacommunities.org/def/concept/finance/sercop/objective/102,ADECCO UK LIMITED,00593232,15-12-2021,0000172785,602.33,0,Democratic Administrator - R,261400,HR Temporary & Agency Staff
South Lakeland District Council,http://opendatacommunities.org/id/district-council/south-lakeland,31/12/2021,Case Management Regulatory,Central Services,http://opendatacommunities.org/def/concept/finance/sercop/objective/102,The Oyster Partnership,05020374,06-12-2021,0000172471,608,0,Agency Officer to cover assessment of,261300,HR Recruitment & Assessment
South Lakeland District Council,http://opendatacommunities.org/id/district-council/south-lakeland,31/12/2021,Case Management Regulatory,Central Services,http://opendatacommunities.org/def/concept/finance/sercop/objective/102,The Oyster Partnership,05020374,20-12-2021,0000172760,608,0,Agency Officer to cover assessment of,261300,HR Recruitment & Assessment
South Lakeland District Council,http://opendatacommunities.org/id/district-council/south-lakeland,31/12/2021,Support Services,Other Items,,PS BUSINESS MATTERS,08147185,20-12-2021,0000172818,620,0,Welcome Back Project Activity Plan,151900,Consultancy Management
South Lakeland District Council,http://opendatacommunities.org/id/district-council/south-lakeland,31/12/2021,Support Services,Central Services,http://opendatacommunities.org/def/concept/finance/sercop/objective/102,CFH Docmail Ltd,01716891,13-12-2021,0000172508,650.77,0,Printing throughout the year,300000,Mail Services
South Lakeland District Council,http://opendatacommunities.org/id/district-council/south-lakeland,31/12/2021,Case Management People,Housing Services,http://opendatacommunities.org/def/concept/finance/sercop/objective/108,GROWING CONCERNS LTD,,20-12-2021,0000172911,672,0,"Handy Person Scheme, Invoices sent from",391200,Construction Engineering
South Lakeland District Council,http://opendatacommunities.org/id/district-council/south-lakeland,31/12/2021,Support Services,Central Services,http://opendatacommunities.org/def/concept/finance/sercop/objective/102,ROYAL MAIL GROUP PLC,,13-12-2021,0000172710,685.56,0,Return Response Plus invoice for Grange,301200,Mail Services� Postage
South Lakeland District Council,http://opendatacommunities.org/id/district-council/south-lakeland,31/12/2021,Human Resources,Central Services,http://opendatacommunities.org/def/concept/finance/sercop/objective/102,ADECCO UK LIMITED,00593232,15-12-2021,0000172784,692.23,0,Democratic Administrator - R,261400,HR Temporary & Agency Staff
South Lakeland District Council,http://opendatacommunities.org/id/district-council/south-lakeland,31/12/2021,Case Management People,Housing Services,http://opendatacommunities.org/def/concept/finance/sercop/objective/108,D Clark Properties,,06-12-2021,0000172386,700,0,Accommodation 53 Paradise Street,250000,Housing
South Lakeland District Council,http://opendatacommunities.org/id/district-council/south-lakeland,31/12/2021,Case Management Account Mgmt,Cultural Environmental Regulatory & Planning Services,http://opendatacommunities.org/def/concept/finance/sercop/objective/104,CONTINENTAL LANDSCAPES LTD,2108452,06-12-2021,0000172466,700,0,Installation of paving slabs at,391310,Construction Open Spaces Construction
South Lakeland District Council,http://opendatacommunities.org/id/district-council/south-lakeland,31/12/2021,Case Management People,Housing Services,http://opendatacommunities.org/def/concept/finance/sercop/objective/108,D Clark Properties,,22-12-2021,0000173072,700,0,Accommodation ,250000,Housing
South Lakeland District Council,http://opendatacommunities.org/id/district-council/south-lakeland,31/12/2021,Assets and Commercial Services,Central Services,http://opendatacommunities.org/def/concept/finance/sercop/objective/102,J S Cleaning Services,,06-12-2021,0000172429,704,0,Contract cleaning staff for North,131010,Cleaning & Janitorial Cleaning Materials
South Lakeland District Council,http://opendatacommunities.org/id/district-council/south-lakeland,31/12/2021,Business Support Community Services,Cultural Environmental Regulatory & Planning Services,http://opendatacommunities.org/def/concept/finance/sercop/objective/104,Harry Park Tyres Ltd,08131208,06-12-2021,0000172504,720,0,Tyres,381500,Vehicle Mgt Parts
South Lakeland District Council,http://opendatacommunities.org/id/district-council/south-lakeland,31/12/2021,Support Services,Central Services,http://opendatacommunities.org/def/concept/finance/sercop/objective/102,CFH Docmail Ltd,01716891,13-12-2021,0000172509,745.32,0,Printing throughout the year,300000,Mail Services
South Lakeland District Council,http://opendatacommunities.org/id/district-council/south-lakeland,31/12/2021,Assets and Commercial Services,Central Services,http://opendatacommunities.org/def/concept/finance/sercop/objective/102,Virtual College Ltd,,06-12-2021,0000172440,760,0,10 e licences for IOSH working Safely,261520,Human Resources Training
South Lakeland District Council,http://opendatacommunities.org/id/district-council/south-lakeland,31/12/2021,Assets and Commercial Services,Central Services,http://opendatacommunities.org/def/concept/finance/sercop/objective/102,Leigh's Removals,,13-12-2021,0000172746,800,0,removal of furniture and storage of,250000,Housing
South Lakeland District Council,http://opendatacommunities.org/id/district-council/south-lakeland,31/12/2021,Human Resources,Central Services,http://opendatacommunities.org/def/concept/finance/sercop/objective/102,CHARTERED INST OF ENVIRONMNTL HLTH,,15-12-2021,0000172861,800,0,Senior Housing Standards Officer,202100,Financial Services Subscriptions
South Lakeland District Council,http://opendatacommunities.org/id/district-council/south-lakeland,31/12/2021,Case Management Regulatory,Central Services,http://opendatacommunities.org/def/concept/finance/sercop/objective/102,Carrington West,,06-12-2021,0000172483,828,0,Contract Worker,159999,Consultancy Not Elsewhere Classified
South Lakeland District Council,http://opendatacommunities.org/id/district-council/south-lakeland,31/12/2021,Case Management Regulatory,Central Services,http://opendatacommunities.org/def/concept/finance/sercop/objective/102,Carrington West,,15-12-2021,0000172763,828,0,Contract Worker,159999,Consultancy Not Elsewhere Classified
South Lakeland District Council,http://opendatacommunities.org/id/district-council/south-lakeland,31/12/2021,Case Management Regulatory,Central Services,http://opendatacommunities.org/def/concept/finance/sercop/objective/102,Carrington West,,20-12-2021,0000172972,828,0,Contract Worker,159999,Consultancy Not Elsewhere Classified
South Lakeland District Council,http://opendatacommunities.org/id/district-council/south-lakeland,31/12/2021,Case Management People,Housing Services,http://opendatacommunities.org/def/concept/finance/sercop/objective/108,Landlord,,20-12-2021,0000173020,839.88,0,Monthly rent ,250000,Housing
South Lakeland District Council,http://opendatacommunities.org/id/district-council/south-lakeland,31/12/2021,Business Support Community Services,Cultural Environmental Regulatory & Planning Services,http://opendatacommunities.org/def/concept/finance/sercop/objective/104,PIER 1 METALWORKS LTD,04291520,06-12-2021,0000172352,840,0,Repair glass shields,391200,Construction Engineering
South Lakeland District Council,http://opendatacommunities.org/id/district-council/south-lakeland,31/12/2021,Case Management Account Mgmt,Cultural Environmental Regulatory & Planning Services,http://opendatacommunities.org/def/concept/finance/sercop/objective/104,GLASDON UK LTD,02160576,22-12-2021,0000172581,861.03,0,2 x BLACK Glasdon Phoenix recycled seat,109999,Building Not Elsewhere Classified
South Lakeland District Council,http://opendatacommunities.org/id/district-council/south-lakeland,31/12/2021,Case Management Regulatory,Central Services,http://opendatacommunities.org/def/concept/finance/sercop/objective/102,CUMBRIA COUNTY COUNCIL,,06-12-2021,0000171192,900,0,LOCAL LAND CHARGE SEARCH ENQUIRIES,908000,Public Bodies Council support services
South Lakeland District Council,http://opendatacommunities.org/id/district-council/south-lakeland,31/12/2021,Assets and Commercial Services,Other Items,,LRM Security Ltd,,06-12-2021,0000172510,900,0,PO to cover vaccine centre security,192213,Facilities Security Manned Guarding
South Lakeland District Council,http://opendatacommunities.org/id/district-council/south-lakeland,31/12/2021,Case Management Account Mgmt,Central Services,http://opendatacommunities.org/def/concept/finance/sercop/objective/102,CFH Docmail Ltd,01716891,13-12-2021,0000172585,913.91,0,Annual billing Revenues Postage Whistl,300000,Mail Services
South Lakeland District Council,http://opendatacommunities.org/id/district-council/south-lakeland,31/12/2021,Case Management Account Mgmt,Central Services,http://opendatacommunities.org/def/concept/finance/sercop/objective/102,CFH Docmail Ltd,01716891,13-12-2021,0000172709,935.4,0,Annual billing Revenues Postage Whistl,300000,Mail Services
South Lakeland District Council,http://opendatacommunities.org/id/district-council/south-lakeland,31/12/2021,Case Management,Central Services,http://opendatacommunities.org/def/concept/finance/sercop/objective/102,MORGAN HUNT UK LIMITED,04349535,15-12-2021,0000172871,937.95,0,(Revenues Contractor),269999,HR Not Elsewhere Classified
South Lakeland District Council,http://opendatacommunities.org/id/district-council/south-lakeland,31/12/2021,Case Management,Central Services,http://opendatacommunities.org/def/concept/finance/sercop/objective/102,MORGAN HUNT UK LIMITED,04349535,22-12-2021,0000172942,937.95,0,(Revenues Contractor),269999,HR Not Elsewhere Classified
South Lakeland District Council,http://opendatacommunities.org/id/district-council/south-lakeland,31/12/2021,Delivery Commercial Services,Planning and Development,,Bowland Ecology Ltd,5348761,20-12-2021,0000172596,994,0,Emergence survey Grange Lido,152050,Consultancy Property
South Lakeland District Council,http://opendatacommunities.org/id/district-council/south-lakeland,31/12/2021,Case Management Regulatory,Cultural Environmental Regulatory & Planning Services,http://opendatacommunities.org/def/concept/finance/sercop/objective/104,STM ENVIRONMENTAL LTD,4575523,13-12-2021,0000172716,1084.96,0,STM Software Annual Maintenance,159999,Consultancy Not Elsewhere Classified
South Lakeland District Council,http://opendatacommunities.org/id/district-council/south-lakeland,31/12/2021,Case Management People,Housing Services,http://opendatacommunities.org/def/concept/finance/sercop/objective/108,GROWING CONCERNS LTD,,01-12-2021,0000172390,1104,0,"Handy Person Scheme, Invoices sent from",391200,Construction Engineering
South Lakeland District Council,http://opendatacommunities.org/id/district-council/south-lakeland,31/12/2021,Business Support Community Services,Cultural Environmental Regulatory & Planning Services,http://opendatacommunities.org/def/concept/finance/sercop/objective/104,BRIAN ARMISTEAD LTD T/A SINKFALL RECYCLI,04133280,13-12-2021,0000172698,1122.95,0,Tipping charges,391110,Construction Buildings Construction
South Lakeland District Council,http://opendatacommunities.org/id/district-council/south-lakeland,31/12/2021,Case Management People,Central Services,http://opendatacommunities.org/def/concept/finance/sercop/objective/102,Eden Brown Limited,,06-12-2021,0000172486,1125,0,Payment ,261400,HR Temporary & Agency Staff
South Lakeland District Council,http://opendatacommunities.org/id/district-council/south-lakeland,31/12/2021,Case Management People,Central Services,http://opendatacommunities.org/def/concept/finance/sercop/objective/102,Eden Brown Limited,,20-12-2021,0000172857,1125,0,Payment for ,261400,HR Temporary & Agency Staff
South Lakeland District Council,http://opendatacommunities.org/id/district-council/south-lakeland,31/12/2021,Case Management People,Central Services,http://opendatacommunities.org/def/concept/finance/sercop/objective/102,Eden Brown Limited,,22-12-2021,0000173074,1125,0,Payment ,261400,HR Temporary & Agency Staff
South Lakeland District Council,http://opendatacommunities.org/id/district-council/south-lakeland,31/12/2021,Case Management Account Mgmt,Central Services,http://opendatacommunities.org/def/concept/finance/sercop/objective/102,ROYAL MAIL GROUP PLC,,01-12-2021,0000172388,1141.04,0,2021-22 Postal Charges a/c 0198123013,301200,Mail Services� Postage
South Lakeland District Council,http://opendatacommunities.org/id/district-council/south-lakeland,31/12/2021,Case Management Account Mgmt,Cultural Environmental Regulatory & Planning Services,http://opendatacommunities.org/def/concept/finance/sercop/objective/104,Hayes & Parkinson Ltd,00467905,20-12-2021,0000172822,1175,0,Cremation and Service for Faisal Ahmed,121000,Cemetery & Crematorium Burial & Crem
South Lakeland District Council,http://opendatacommunities.org/id/district-council/south-lakeland,31/12/2021,Case Management People,Housing Services,http://opendatacommunities.org/def/concept/finance/sercop/objective/108,Landlord,,15-12-2021,0000172866,1190,0,Flats ,202000,Financial Services Rents
South Lakeland District Council,http://opendatacommunities.org/id/district-council/south-lakeland,31/12/2021,Business Support Community Services,Cultural Environmental Regulatory & Planning Services,http://opendatacommunities.org/def/concept/finance/sercop/objective/104,BRIAN ARMISTEAD LTD T/A SINKFALL RECYCLI,04133280,20-12-2021,0000172970,1195.06,0,Tipping charges,391110,Construction Buildings Construction
South Lakeland District Council,http://opendatacommunities.org/id/district-council/south-lakeland,31/12/2021,Case Management Account Mgmt,Central Services,http://opendatacommunities.org/def/concept/finance/sercop/objective/102,IRRV SERVICES,,06-12-2021,0000172496,1200,0,Forum Membership,151000,Consultancy Business
South Lakeland District Council,http://opendatacommunities.org/id/district-council/south-lakeland,31/12/2021,Case Management Regulatory,Central Services,http://opendatacommunities.org/def/concept/finance/sercop/objective/102,The Oyster Partnership,05020374,20-12-2021,0000172761,1200,0,Agency Environmental Health Officer,261300,HR Recruitment & Assessment
South Lakeland District Council,http://opendatacommunities.org/id/district-council/south-lakeland,31/12/2021,Case Management Regulatory,Central Services,http://opendatacommunities.org/def/concept/finance/sercop/objective/102,G2 Recruitment Solutions,,13-12-2021,0000172802,1200,0,Planning Contractor,261413,HR- Temporary Staff- Professional
South Lakeland District Council,http://opendatacommunities.org/id/district-council/south-lakeland,31/12/2021,Case Management Regulatory,Central Services,http://opendatacommunities.org/def/concept/finance/sercop/objective/102,G2 Recruitment Solutions,,22-12-2021,0000172935,1200,0,Planning Contractor,261413,HR- Temporary Staff- Professional
South Lakeland District Council,http://opendatacommunities.org/id/district-council/south-lakeland,31/12/2021,Finance,Central Services,http://opendatacommunities.org/def/concept/finance/sercop/objective/102,NEC Software Solutions UK Ltd,,06-12-2021,0000172215,1250,0,Provision of email Connect for,271600,ICT Software Customised & Bespoke
South Lakeland District Council,http://opendatacommunities.org/id/district-council/south-lakeland,31/12/2021,Business Support Community Services,Cultural Environmental Regulatory & Planning Services,http://opendatacommunities.org/def/concept/finance/sercop/objective/104,Verizon Connect UK Ltd,05265904,06-12-2021,0000172503,1253,0,Tracking system,361000,Public Transport Fleet Management
South Lakeland District Council,http://opendatacommunities.org/id/district-council/south-lakeland,31/12/2021,Westmorland Centre Parking Office,Highways & Transport Services,http://opendatacommunities.org/def/concept/finance/sercop/objective/107,Security Plus   Limited,,20-12-2021,0000172957,1259.69,0,Bulk cash collection April 2021-March,209999,Financial Services Not Elsewhere Classif
South Lakeland District Council,http://opendatacommunities.org/id/district-council/south-lakeland,31/12/2021,Business Support Community Services,Cultural Environmental Regulatory & Planning Services,http://opendatacommunities.org/def/concept/finance/sercop/objective/104,Masterstaff Limited,02777593,20-12-2021,0000172966,1274.4,0,Agency staff,261300,HR Recruitment & Assessment
South Lakeland District Council,http://opendatacommunities.org/id/district-council/south-lakeland,31/12/2021,Delivery Commercial Services,Central Services,http://opendatacommunities.org/def/concept/finance/sercop/objective/102,RICS,RC000487,06-12-2021,0000172372,1280,0,BCIS Review Online,261500,HR Training & Conferences
South Lakeland District Council,http://opendatacommunities.org/id/district-council/south-lakeland,31/12/2021,Case Management Regulatory,Central Services,http://opendatacommunities.org/def/concept/finance/sercop/objective/102,The Oyster Partnership,05020374,20-12-2021,0000172762,1305,0,Agency Officer - Licensing,261300,HR Recruitment & Assessment
South Lakeland District Council,http://opendatacommunities.org/id/district-council/south-lakeland,31/12/2021,Case Management Regulatory,Central Services,http://opendatacommunities.org/def/concept/finance/sercop/objective/102,The Oyster Partnership,05020374,06-12-2021,0000172273,1332,0,Agency Officer - Licensing,261300,HR Recruitment & Assessment
South Lakeland District Council,http://opendatacommunities.org/id/district-council/south-lakeland,31/12/2021,Case Management Regulatory,Central Services,http://opendatacommunities.org/def/concept/finance/sercop/objective/102,The Oyster Partnership,05020374,06-12-2021,0000172470,1332,0,Agency Officer - Licensing,261300,HR Recruitment & Assessment
South Lakeland District Council,http://opendatacommunities.org/id/district-council/south-lakeland,31/12/2021,Case Management Account Mgmt,Cultural Environmental Regulatory & Planning Services,http://opendatacommunities.org/def/concept/finance/sercop/objective/104,Bergen Arbortech,,20-12-2021,0000172593,1356.7,0,Storm clearance - trees BTS 27-11-21:,241210,Horticultural Tree Trimming
South Lakeland District Council,http://opendatacommunities.org/id/district-council/south-lakeland,31/12/2021,ICT Group,Central Services,http://opendatacommunities.org/def/concept/finance/sercop/objective/102,Insight Direct (Uk) Ltd,2579852,13-12-2021,0000172552,1371.78,0,as per quote 210022313,271200,ICT Hardware
South Lakeland District Council,http://opendatacommunities.org/id/district-council/south-lakeland,31/12/2021,Business Support Community Services,Cultural Environmental Regulatory & Planning Services,http://opendatacommunities.org/def/concept/finance/sercop/objective/104,LANCASHIRE DAF,,20-12-2021,0000172969,1405.51,0,Parts,381400,Vehicle Mgt Maintenance
South Lakeland District Council,http://opendatacommunities.org/id/district-council/south-lakeland,31/12/2021,Case Management Account Mgmt,Cultural Environmental Regulatory & Planning Services,http://opendatacommunities.org/def/concept/finance/sercop/objective/104,PPL PRS Limited,10376001,13-12-2021,0000172777,1421.84,0,Parks and open spaces events music,202100,Financial Services Subscriptions
South Lakeland District Council,http://opendatacommunities.org/id/district-council/south-lakeland,31/12/2021,Human Resources,Central Services,http://opendatacommunities.org/def/concept/finance/sercop/objective/102,Choose Occupational Health,07365943,22-12-2021,0000172764,1485,0,Fitness Certificate - ,191800,Facilities Public Relations & Image
South Lakeland District Council,http://opendatacommunities.org/id/district-council/south-lakeland,31/12/2021,Business Support Community Services,Cultural Environmental Regulatory & Planning Services,http://opendatacommunities.org/def/concept/finance/sercop/objective/104,Masterstaff Limited,02777593,06-12-2021,0000172502,1497.6,0,Agency staff,261300,HR Recruitment & Assessment
South Lakeland District Council,http://opendatacommunities.org/id/district-council/south-lakeland,31/12/2021,Support Services,Cultural Environmental Regulatory & Planning Services,http://opendatacommunities.org/def/concept/finance/sercop/objective/104,KINGS CHAMBERS,07091130,22-12-2021,0000173032,1500,0,ref PLAN0172 - Local Plan Review,281300,Legal Services Legal Opinion
South Lakeland District Council,http://opendatacommunities.org/id/district-council/south-lakeland,31/12/2021,Business Support Community Services,Cultural Environmental Regulatory & Planning Services,http://opendatacommunities.org/def/concept/finance/sercop/objective/104,Masterstaff Limited,02777593,13-12-2021,0000172781,1533.6,0,Agency staff,261300,HR Recruitment & Assessment
South Lakeland District Council,http://opendatacommunities.org/id/district-council/south-lakeland,31/12/2021,Business Support Community Services,Cultural Environmental Regulatory & Planning Services,http://opendatacommunities.org/def/concept/finance/sercop/objective/104,ARCO LIMITED,00133804,06-12-2021,0000172449,1564.07,0,Cleaning materials,141100,Clothing Protective
South Lakeland District Council,http://opendatacommunities.org/id/district-council/south-lakeland,31/12/2021,Delivery Commercial Services,Culture and Related Serv,http://opendatacommunities.org/def/concept/finance/sercop/objective/104,Paul Grout Associates,,01-12-2021,0000172375,1570,0,Kirkby Lonsdale Market Cross - Final,391000,Construction Architect
South Lakeland District Council,http://opendatacommunities.org/id/district-council/south-lakeland,31/12/2021,Case Management People,Housing Services,http://opendatacommunities.org/def/concept/finance/sercop/objective/108,James Andrews Recruitment Solutions,06834852,06-12-2021,0000172423,1652.28,0,Payment for,261400,HR Temporary & Agency Staff
South Lakeland District Council,http://opendatacommunities.org/id/district-council/south-lakeland,31/12/2021,Case Management People,Housing Services,http://opendatacommunities.org/def/concept/finance/sercop/objective/108,James Andrews Recruitment Solutions,06834852,13-12-2021,0000172701,1652.28,0,Payment for Bruce Johnson,261400,HR Temporary & Agency Staff
South Lakeland District Council,http://opendatacommunities.org/id/district-council/south-lakeland,31/12/2021,Case Management People,Housing Services,http://opendatacommunities.org/def/concept/finance/sercop/objective/108,James Andrews Recruitment Solutions,06834852,20-12-2021,0000172891,1652.28,0,Payment ,261400,HR Temporary & Agency Staff
South Lakeland District Council,http://opendatacommunities.org/id/district-council/south-lakeland,31/12/2021,ICT Group,Central Services,http://opendatacommunities.org/def/concept/finance/sercop/objective/102,NEC Software Solutions UK Ltd,,15-12-2021,0000169713,1700,0,2 days training as per quote NQ/130409,271600,ICT Software Customised & Bespoke
South Lakeland District Council,http://opendatacommunities.org/id/district-council/south-lakeland,31/12/2021,Case Management Account Mgmt,Cultural Environmental Regulatory & Planning Services,http://opendatacommunities.org/def/concept/finance/sercop/objective/104,CONTINENTAL LANDSCAPES LTD,2108452,06-12-2021,0000172467,1767.43,0,Parks Routine Maintenance for 2021-22,391310,Construction Open Spaces Construction
South Lakeland District Council,http://opendatacommunities.org/id/district-council/south-lakeland,31/12/2021,Case Management People,Housing Services,http://opendatacommunities.org/def/concept/finance/sercop/objective/108,Women's Aid Federation of England,,13-12-2021,0000172670,1800,0,MOJ Certificate,250000,Housing
South Lakeland District Council,http://opendatacommunities.org/id/district-council/south-lakeland,31/12/2021,Development Implementation,Culture and Related Serv,http://opendatacommunities.org/def/concept/finance/sercop/objective/104,R G PARKINS & PARTNERS LTD,04107150,20-12-2021,0000172908,1800,0,Grange Promenade &  Lido Work,152200,Consultancy Technical & Feasibility
South Lakeland District Council,http://opendatacommunities.org/id/district-council/south-lakeland,31/12/2021,Case Management Account Mgmt,Central Services,http://opendatacommunities.org/def/concept/finance/sercop/objective/102,ROYAL MAIL GROUP PLC,,08-12-2021,0000172622,1808.25,0,2021-22 Postal Charges a/c 0198123013,301200,Mail Services� Postage
South Lakeland District Council,http://opendatacommunities.org/id/district-council/south-lakeland,31/12/2021,Case Management Account Mgmt,Central Services,http://opendatacommunities.org/def/concept/finance/sercop/objective/102,ROYAL MAIL GROUP PLC,,20-12-2021,0000172624,1847.47,0,2021-22 Postal Charges a/c 0198123013,301200,Mail Services� Postage
South Lakeland District Council,http://opendatacommunities.org/id/district-council/south-lakeland,31/12/2021,Business Support Community Services,Cultural Environmental Regulatory & Planning Services,http://opendatacommunities.org/def/concept/finance/sercop/objective/104,CUMBRIA WASTE RECYCLING LTD,03162439,15-12-2021,0000172847,1911,0,Skip emptying,182012,Environment Waste Management Recycling
South Lakeland District Council,http://opendatacommunities.org/id/district-council/south-lakeland,31/12/2021,Delivery Commercial Services,Environment Regulatory,,R G PARKINS & PARTNERS LTD,04107150,13-12-2021,0000172542,1923,0,Foundation works & ducts for car parks,152200,Consultancy Technical & Feasibility
South Lakeland District Council,http://opendatacommunities.org/id/district-council/south-lakeland,31/12/2021,ICT Group,Central Services,http://opendatacommunities.org/def/concept/finance/sercop/objective/102,IT PROFESSIONAL SERVICES (ITPS),,08-12-2021,0000172255,1950,0,Day(s) for 1 x cabling engineer Out of,279999,ICT Not Elsewhere Classified
South Lakeland District Council,http://opendatacommunities.org/id/district-council/south-lakeland,31/12/2021,Case Management Regulatory,Central Services,http://opendatacommunities.org/def/concept/finance/sercop/objective/102,Macdonald & Company Freelance Ltd,03882135,06-12-2021,0000172511,1974,0,Contract Worker,261400,HR Temporary & Agency Staff
South Lakeland District Council,http://opendatacommunities.org/id/district-council/south-lakeland,31/12/2021,Finance,Highways & Transport Services,http://opendatacommunities.org/def/concept/finance/sercop/objective/107,ULVERSTON TOWN LANDS TRUST,,08-12-2021,0000172562,2000,0,The Gill Car Park Rent 2020-21,202100,Financial Services Subscriptions
South Lakeland District Council,http://opendatacommunities.org/id/district-council/south-lakeland,31/12/2021,Support Services,Central Services,http://opendatacommunities.org/def/concept/finance/sercop/objective/102,Timothy Straker,,22-12-2021,0000172989,2000,0,Local Government Reorganisation in,280000,Legal Services
South Lakeland District Council,http://opendatacommunities.org/id/district-council/south-lakeland,31/12/2021,Case Management Account Mgmt,Cultural Environmental Regulatory & Planning Services,http://opendatacommunities.org/def/concept/finance/sercop/objective/104,CUMBRIA MAILING SERVICES LTD,03136821,20-12-2021,0000172592,2024.52,0,SLDC business premises survey mail out,301200,Mail Services� Postage
South Lakeland District Council,http://opendatacommunities.org/id/district-council/south-lakeland,31/12/2021,Case Management Account Mgmt,Cultural Environmental Regulatory & Planning Services,http://opendatacommunities.org/def/concept/finance/sercop/objective/104,CONTINENTAL LANDSCAPES LTD,2108452,06-12-2021,0000172467,2039.34,0,Parks Routine Maintenance for 2021-22,391310,Construction Open Spaces Construction
South Lakeland District Council,http://opendatacommunities.org/id/district-council/south-lakeland,31/12/2021,Support Services,Central Services,http://opendatacommunities.org/def/concept/finance/sercop/objective/102,KENDAL TOWN COUNCIL,,20-12-2021,0000172910,2040,0,Chairman's 50% contribution to,908000,Public Bodies Council support services
South Lakeland District Council,http://opendatacommunities.org/id/district-council/south-lakeland,31/12/2021,Case Management Account Mgmt,Highways & Transport Services,http://opendatacommunities.org/def/concept/finance/sercop/objective/107,BEMROSE BOOTH PARAGON LTD,04891375,22-12-2021,0000173060,2068,0,"350,000 Aura self adhesive Pay and",191600,Facilities Printing
South Lakeland District Council,http://opendatacommunities.org/id/district-council/south-lakeland,31/12/2021,Human Resources,Central Services,http://opendatacommunities.org/def/concept/finance/sercop/objective/102,Ginger Dog,11132740,08-12-2021,0000172513,2100,0,Team Leader Development Programme,261500,HR Training & Conferences
South Lakeland District Council,http://opendatacommunities.org/id/district-council/south-lakeland,31/12/2021,Case Management Account Mgmt,Central Services,http://opendatacommunities.org/def/concept/finance/sercop/objective/102,ROYAL MAIL GROUP PLC,,08-12-2021,0000172623,2102.35,0,2021-22 Postal Charges a/c 0198123013,301200,Mail Services� Postage
South Lakeland District Council,http://opendatacommunities.org/id/district-council/south-lakeland,31/12/2021,Business Support Community Services,Cultural Environmental Regulatory & Planning Services,http://opendatacommunities.org/def/concept/finance/sercop/objective/104,METCALFE BROS LTD,05899629,15-12-2021,0000172892,2166,0,Sweeper hire - 01/09/21 - 31/01/22,381200,Vehicle Mgt Heavy Constr Equip Leasing
South Lakeland District Council,http://opendatacommunities.org/id/district-council/south-lakeland,31/12/2021,Case Management People,SLDC as Agent,,CIVICA UK LTD,01628868,15-12-2021,0000172345,2182.8,0,Contract extensions to 31/12/2021,271600,ICT Software Customised & Bespoke
South Lakeland District Council,http://opendatacommunities.org/id/district-council/south-lakeland,31/12/2021,Case Management People,SLDC as Agent,,CIVICA UK LTD,01628868,15-12-2021,0000172346,2182.8,0,Contract extensions to 31/12/2021,271600,ICT Software Customised & Bespoke
South Lakeland District Council,http://opendatacommunities.org/id/district-council/south-lakeland,31/12/2021,Case Management People,SLDC as Agent,,CIVICA UK LTD,01628868,15-12-2021,0000172347,2182.8,0,Contract extensions to 31/12/2021,271600,ICT Software Customised & Bespoke
South Lakeland District Council,http://opendatacommunities.org/id/district-council/south-lakeland,31/12/2021,Case Management People,SLDC as Agent,,CIVICA UK LTD,01628868,15-12-2021,0000172348,2182.8,0,Contract extensions to 31/12/2021,271600,ICT Software Customised & Bespoke
South Lakeland District Council,http://opendatacommunities.org/id/district-council/south-lakeland,31/12/2021,Case Management People,SLDC as Agent,,CIVICA UK LTD,01628868,15-12-2021,0000172350,2182.8,0,Contract extensions to 31/12/2021,271600,ICT Software Customised & Bespoke
South Lakeland District Council,http://opendatacommunities.org/id/district-council/south-lakeland,31/12/2021,Case Management People,SLDC as Agent,,CIVICA UK LTD,01628868,15-12-2021,0000172351,2182.8,0,Contract extensions to 31/12/2021,271600,ICT Software Customised & Bespoke
South Lakeland District Council,http://opendatacommunities.org/id/district-council/south-lakeland,31/12/2021,Business Support Community Services,Cultural Environmental Regulatory & Planning Services,http://opendatacommunities.org/def/concept/finance/sercop/objective/104,PENNINGTONS (KENDAL) LIMITED,00434649,15-12-2021,0000172673,2200,0,Use of Boundary Bank,182013,Environment Waste Mgt Waste Collection
South Lakeland District Council,http://opendatacommunities.org/id/district-council/south-lakeland,31/12/2021,Case Management Account Mgmt,Central Services,http://opendatacommunities.org/def/concept/finance/sercop/objective/102,ROSEFOX PAPER LIMITED,01655083,08-12-2021,0000172419,2224,0,A4 80gsm pallette,341000,Stationery Paper
South Lakeland District Council,http://opendatacommunities.org/id/district-council/south-lakeland,31/12/2021,Case Management Account Mgmt,Cultural Environmental Regulatory & Planning Services,http://opendatacommunities.org/def/concept/finance/sercop/objective/104,CONTINENTAL LANDSCAPES LTD,2108452,06-12-2021,0000172469,2260.1,0,For disposal of waste to Kendal Fell,391310,Construction Open Spaces Construction
South Lakeland District Council,http://opendatacommunities.org/id/district-council/south-lakeland,31/12/2021,Business Support Community Services,Cultural Environmental Regulatory & Planning Services,http://opendatacommunities.org/def/concept/finance/sercop/objective/104,PROBRUSH T/A NORTHERN MUNICIPAL SPARES L,,20-12-2021,0000172964,2280,0,Brushes,381600,Vehicle Mgt Leasing
South Lakeland District Council,http://opendatacommunities.org/id/district-council/south-lakeland,31/12/2021,Support Services,Cultural Environmental Regulatory & Planning Services,http://opendatacommunities.org/def/concept/finance/sercop/objective/104,Future Fixers CIC,13039836,06-12-2021,0000172492,2300,0,Future Fixers funding contribution for,150000,Consultancy
South Lakeland District Council,http://opendatacommunities.org/id/district-council/south-lakeland,31/12/2021,Business Support Community Services,Cultural Environmental Regulatory & Planning Services,http://opendatacommunities.org/def/concept/finance/sercop/objective/104,BRIAN ARMISTEAD LTD T/A SINKFALL RECYCLI,04133280,15-12-2021,0000172674,2320.72,0,Tipping charges,391110,Construction Buildings Construction
South Lakeland District Council,http://opendatacommunities.org/id/district-council/south-lakeland,31/12/2021,Case Management Regulatory,Central Services,http://opendatacommunities.org/def/concept/finance/sercop/objective/102,G2 Recruitment Solutions,,15-12-2021,0000172874,2400,0,Planning Contractor,261413,HR- Temporary Staff- Professional
South Lakeland District Council,http://opendatacommunities.org/id/district-council/south-lakeland,31/12/2021,Finance,Central Services,http://opendatacommunities.org/def/concept/finance/sercop/objective/102,Capita IB Solutions Ltd,01593831,20-12-2021,0000172954,2428.82,0,Purchase Ordering annual maintenance 1,271600,ICT Software Customised & Bespoke
South Lakeland District Council,http://opendatacommunities.org/id/district-council/south-lakeland,31/12/2021,Westmorland Centre Parking Office,Culture and Related Serv,http://opendatacommunities.org/def/concept/finance/sercop/objective/104,Pestokill,,13-12-2021,0000172643,2447.2,0,Labour - Installation Team Day rate for,181500,Environment Animal Services
South Lakeland District Council,http://opendatacommunities.org/id/district-council/south-lakeland,31/12/2021,Case Management Account Mgmt,Cultural Environmental Regulatory & Planning Services,http://opendatacommunities.org/def/concept/finance/sercop/objective/104,S & T Klosinski Eco Dev Consultants,09610974,20-12-2021,0000172979,2500,0,GSK Masterplan Consultancy Support,151000,Consultancy Business
South Lakeland District Council,http://opendatacommunities.org/id/district-council/south-lakeland,31/12/2021,Support Services,Central Services,http://opendatacommunities.org/def/concept/finance/sercop/objective/102,Browne Jacobson LLP,OC306448,22-12-2021,0000173030,2500,0,Ref-Lease of Braithwaite Fold Caravan,281200,Legal Services General Support
South Lakeland District Council,http://opendatacommunities.org/id/district-council/south-lakeland,31/12/2021,Human Resources,Central Services,http://opendatacommunities.org/def/concept/finance/sercop/objective/102,Ginger Dog,11132740,15-12-2021,0000172551,2625,0,Team Leader Development Programme,261500,HR Training & Conferences
South Lakeland District Council,http://opendatacommunities.org/id/district-council/south-lakeland,31/12/2021,Case Management Regulatory,Central Services,http://opendatacommunities.org/def/concept/finance/sercop/objective/102,LAKE DISTRICT NATIONAL PARK AUTHORITY,,13-12-2021,0000172711,2627.5,0,LAND CHARGE SEARCH ENQUIRIES LDNP,201700,Financial Services Grants
South Lakeland District Council,http://opendatacommunities.org/id/district-council/south-lakeland,31/12/2021,Case Management Account Mgmt,SLDC as Agent,,PS BUSINESS MATTERS,08147185,20-12-2021,0000172819,2750,0,Kendal Futures contract payment,151900,Consultancy Management
South Lakeland District Council,http://opendatacommunities.org/id/district-council/south-lakeland,31/12/2021,Customer Services,Cultural Environmental Regulatory & Planning Services,http://opendatacommunities.org/def/concept/finance/sercop/objective/104,MILNTHORPE KENNELS & CATTERY,08932302,15-12-2021,0000172872,2791.67,0,Stray dog kennelling fees 2021/22,181500,Environment Animal Services
South Lakeland District Council,http://opendatacommunities.org/id/district-council/south-lakeland,31/12/2021,Case Management Account Mgmt,Cultural Environmental Regulatory & Planning Services,http://opendatacommunities.org/def/concept/finance/sercop/objective/104,I T SHAW LTD,02971577,15-12-2021,0000172295,3160,0,"Repairs to paths in Bluebell Woods,",152200,Consultancy Technical & Feasibility
South Lakeland District Council,http://opendatacommunities.org/id/district-council/south-lakeland,31/12/2021,Human Resources,Central Services,http://opendatacommunities.org/def/concept/finance/sercop/objective/102,People and Transformational HR Ltd,,15-12-2021,0000172878,3200,0,Agile Ambassadors Training,261500,HR Training & Conferences
South Lakeland District Council,http://opendatacommunities.org/id/district-council/south-lakeland,31/12/2021,Case Management Account Mgmt,SLDC as Agent,,PAY BY PHONE (PAYPOINT),,15-12-2021,0000172759,3402.17,0,Fees payable for use of PaybyPhone at,351400,Street & Traffic Traffic Control
South Lakeland District Council,http://opendatacommunities.org/id/district-council/south-lakeland,31/12/2021,Delivery Commercial Services,Housing,http://opendatacommunities.org/def/concept/finance/sercop/objective/108,Howe Projects Ltd,,01-12-2021,0000172391,3544.21,0,Family Units Hampsfell Hostel -,109999,Building Not Elsewhere Classified
South Lakeland District Council,http://opendatacommunities.org/id/district-council/south-lakeland,31/12/2021,Support Services,Central Services,http://opendatacommunities.org/def/concept/finance/sercop/objective/102,CIPFA,02376684,13-12-2021,0000172661,3760,0,CIPFA Publication Service Subscription,202100,Financial Services Subscriptions
South Lakeland District Council,http://opendatacommunities.org/id/district-council/south-lakeland,31/12/2021,Case Management People,Housing Services,http://opendatacommunities.org/def/concept/finance/sercop/objective/108,HOME GROUP LTD,IP22981R,22-12-2021,0000173073,3958.5,0,Payment for Crag View,250000,Housing
South Lakeland District Council,http://opendatacommunities.org/id/district-council/south-lakeland,31/12/2021,Case Management Account Mgmt,Cultural Environmental Regulatory & Planning Services,http://opendatacommunities.org/def/concept/finance/sercop/objective/104,CONTINENTAL LANDSCAPES LTD,2108452,06-12-2021,0000172468,4109.55,0,For gravedigging for 2021/22,391310,Construction Open Spaces Construction
South Lakeland District Council,http://opendatacommunities.org/id/district-council/south-lakeland,31/12/2021,Business Support Community Services,Cultural Environmental Regulatory & Planning Services,http://opendatacommunities.org/def/concept/finance/sercop/objective/104,Romaquip UK,,13-12-2021,0000172697,4250,0,Vehicle hire,381000,Vehicle Mgt Commercial
South Lakeland District Council,http://opendatacommunities.org/id/district-council/south-lakeland,31/12/2021,Case Management Regulatory,Cultural Environmental Regulatory & Planning Services,http://opendatacommunities.org/def/concept/finance/sercop/objective/104,UNITED UTILITIES WATER PLC,2366678,20-12-2021,0000172588,4342.05,0,Private Water Analysis,371300,Utilities Water
South Lakeland District Council,http://opendatacommunities.org/id/district-council/south-lakeland,31/12/2021,Case Management Account Mgmt,Cultural Environmental Regulatory & Planning Services,http://opendatacommunities.org/def/concept/finance/sercop/objective/104,Bergen Arbortech,,22-12-2021,0000173024,4630,0,Storm Arwen Call-outs BTS 03.12.21.,241210,Horticultural Tree Trimming
South Lakeland District Council,http://opendatacommunities.org/id/district-council/south-lakeland,31/12/2021,Customer Services,Cultural Environmental Regulatory & Planning Services,http://opendatacommunities.org/def/concept/finance/sercop/objective/104,RIGHT 2 WORK,,15-12-2021,0000172514,4668,0,Bulky Waste scheme 2021/22,321010,Social Care Adult Advice & Counselling
South Lakeland District Council,http://opendatacommunities.org/id/district-council/south-lakeland,31/12/2021,Case Management Regulatory,Central Services,http://opendatacommunities.org/def/concept/finance/sercop/objective/102,The Oyster Partnership,05020374,06-12-2021,0000172472,4760,0,Agency Environmental Health Officer,261300,HR Recruitment & Assessment
South Lakeland District Council,http://opendatacommunities.org/id/district-council/south-lakeland,31/12/2021,Support Services,Central Services,http://opendatacommunities.org/def/concept/finance/sercop/objective/102,TIAA Ltd,04546319,20-12-2021,0000172948,4760,0,21-22 internal audit service,201100,Financial Services Audit
South Lakeland District Council,http://opendatacommunities.org/id/district-council/south-lakeland,31/12/2021,Finance,Highways & Transport Services,http://opendatacommunities.org/def/concept/finance/sercop/objective/107,ULVERSTON TOWN LANDS TRUST,,08-12-2021,0000172562,4930.58,0,The Gill Car Park Rent 2020-21,202100,Financial Services Subscriptions
South Lakeland District Council,http://opendatacommunities.org/id/district-council/south-lakeland,31/12/2021,Finance,Central Services,http://opendatacommunities.org/def/concept/finance/sercop/objective/102,NEC Software Solutions UK Ltd,,15-12-2021,0000169712,5000,0,Provision of email Connect for,271600,ICT Software Customised & Bespoke
South Lakeland District Council,http://opendatacommunities.org/id/district-council/south-lakeland,31/12/2021,Assets and Commercial Services,Housing Services,http://opendatacommunities.org/def/concept/finance/sercop/objective/108,LRM Security Ltd,,06-12-2021,0000172493,5250,0,to cover LRM agency invoices cover due,192213,Facilities Security Manned Guarding
South Lakeland District Council,http://opendatacommunities.org/id/district-council/south-lakeland,31/12/2021,Westmorland Centre Parking Office,Highways & Transport Services,http://opendatacommunities.org/def/concept/finance/sercop/objective/107,Orbility,,20-12-2021,0000172947,5495.62,0,Maintenance agreement for WMMSCP,111200,Catering Food & Beverages
South Lakeland District Council,http://opendatacommunities.org/id/district-council/south-lakeland,31/12/2021,Business Support Community Services,Cultural Environmental Regulatory & Planning Services,http://opendatacommunities.org/def/concept/finance/sercop/objective/104,RPC BPI RECYCLED PRODUCTS,350729,13-12-2021,0000172641,5733,0,Black liners - 455x785x990 50/F 400/PK,182013,Environment Waste Mgt Waste Collection
South Lakeland District Council,http://opendatacommunities.org/id/district-council/south-lakeland,31/12/2021,Business Support Community Services,Cultural Environmental Regulatory & Planning Services,http://opendatacommunities.org/def/concept/finance/sercop/objective/104,Initial,01298292,20-12-2021,0000172926,5859.4,0,Clinical waste collections,131011,Cleaning & Janitorial Cleaning Materials
South Lakeland District Council,http://opendatacommunities.org/id/district-council/south-lakeland,31/12/2021,Case Management Account Mgmt,Highways & Transport Services,http://opendatacommunities.org/def/concept/finance/sercop/objective/107,BEMROSE BOOTH PARAGON LTD,04891375,22-12-2021,0000173061,6114,0,133-10390A 1050 packs of 1000 AURA,191600,Facilities Printing
South Lakeland District Council,http://opendatacommunities.org/id/district-council/south-lakeland,31/12/2021,Support Services,Central Services,http://opendatacommunities.org/def/concept/finance/sercop/objective/102,GRANT THORNTON UK LLP,OC307742,06-12-2021,0000172465,7575,0,2019/20 Additional Audit works for,201000,Financial Services Accountancy
South Lakeland District Council,http://opendatacommunities.org/id/district-council/south-lakeland,31/12/2021,Case Management Account Mgmt,Cultural Environmental Regulatory & Planning Services,http://opendatacommunities.org/def/concept/finance/sercop/objective/104,Kendal Mountain Events Ltd,06597071,22-12-2021,0000173089,10000,0,For groundwork protection to be,291400,Arts & Leisure Services Sport & Fitness
South Lakeland District Council,http://opendatacommunities.org/id/district-council/south-lakeland,31/12/2021,Case Management Account Mgmt,Cultural Environmental Regulatory & Planning Services,http://opendatacommunities.org/def/concept/finance/sercop/objective/104,CONTINENTAL LANDSCAPES LTD,2108452,06-12-2021,0000172467,10876.47,0,Parks Routine Maintenance for 2021-22,391310,Construction Open Spaces Construction
South Lakeland District Council,http://opendatacommunities.org/id/district-council/south-lakeland,31/12/2021,ICT Group,Central Services,http://opendatacommunities.org/def/concept/finance/sercop/objective/102,PHOENIX SOFTWARE LTD,02548628,15-12-2021,0000172314,11299.5,0,Microsoft yearly Licencing as per,271600,ICT Software Customised & Bespoke
South Lakeland District Council,http://opendatacommunities.org/id/district-council/south-lakeland,31/12/2021,Support Services,Central Services,http://opendatacommunities.org/def/concept/finance/sercop/objective/102,GRANT THORNTON UK LLP,OC307742,13-12-2021,0000172664,11501.25,0,21-22 External Audit Services,201000,Financial Services Accountancy
South Lakeland District Council,http://opendatacommunities.org/id/district-council/south-lakeland,31/12/2021,Business Support Community Services,Cultural Environmental Regulatory & Planning Services,http://opendatacommunities.org/def/concept/finance/sercop/objective/104,CUMBRIA WASTE RECYCLING LTD,03162439,20-12-2021,0000172974,11973.54,0,Empty recycling banks,182012,Environment Waste Management Recycling
South Lakeland District Council,http://opendatacommunities.org/id/district-council/south-lakeland,31/12/2021,Support Services,Central Services,http://opendatacommunities.org/def/concept/finance/sercop/objective/102,Timothy Straker,,22-12-2021,0000172988,13000,0,Local Government Reorganisation in,280000,Legal Services
South Lakeland District Council,http://opendatacommunities.org/id/district-council/south-lakeland,31/12/2021,Business Support Community Services,Central Services,http://opendatacommunities.org/def/concept/finance/sercop/objective/102,ONE51 ES Plastics (UK) Ltd t/aMGB Plasti,,15-12-2021,0000172826,13353.6,0,"240L Grey Plastic Wheeled Bin, Fully",231700,Highways Street Furniture & Ironworks
South Lakeland District Council,http://opendatacommunities.org/id/district-council/south-lakeland,31/12/2021,Business Support Community Services,Central Services,http://opendatacommunities.org/def/concept/finance/sercop/objective/102,ONE51 ES Plastics (UK) Ltd t/aMGB Plasti,,15-12-2021,0000172827,13353.6,0,"240L Grey Plastic Wheeled Bin, Fully",231700,Highways Street Furniture & Ironworks
South Lakeland District Council,http://opendatacommunities.org/id/district-council/south-lakeland,31/12/2021,Case Management Account Mgmt,Cultural Environmental Regulatory & Planning Services,http://opendatacommunities.org/def/concept/finance/sercop/objective/104,Greaves Tree Services,,22-12-2021,0000173039,15410,0,Rothay Park Emergency Work (Storm Arwen),241600,Horticultural Trees & Shrubs
South Lakeland District Council,http://opendatacommunities.org/id/district-council/south-lakeland,31/12/2021,Case Management Account Mgmt,Non-Service Payments,,Ulverston BID Company Ltd,09761005,13-12-2021,0000172771,17937.97,0,Monies Collected,201700,Financial Services Grants
South Lakeland District Council,http://opendatacommunities.org/id/district-council/south-lakeland,31/12/2021,Case Management Account Mgmt,Central Services,http://opendatacommunities.org/def/concept/finance/sercop/objective/102,MERITEC LTD,03224622,13-12-2021,0000172800,18007.25,0,Revenues Processing support - Quote QU,391200,Construction Engineering
South Lakeland District Council,http://opendatacommunities.org/id/district-council/south-lakeland,31/12/2021,Human Resources,Central Services,http://opendatacommunities.org/def/concept/finance/sercop/objective/102,Ginger Dog,11132740,08-12-2021,0000172512,18958.74,0,Team Leader Development Programme,261500,HR Training & Conferences
South Lakeland District Council,http://opendatacommunities.org/id/district-council/south-lakeland,31/12/2021,Finance,Central Services,http://opendatacommunities.org/def/concept/finance/sercop/objective/102,CUMBRIA LGPS,,20-12-2021,0000172899,20631.95,0,Pension Strain Costs of Redundancy,908999,Public Bodies Not Elsewhere Classified
South Lakeland District Council,http://opendatacommunities.org/id/district-council/south-lakeland,31/12/2021,Support Services,Cultural Environmental Regulatory & Planning Services,http://opendatacommunities.org/def/concept/finance/sercop/objective/104,CUMBRIA CHAMBER OF COMMERCE,04211364,13-12-2021,0000172647,31112,0,BSUS Grant Funding Quarters 1 and 2 and,201700,Financial Services Grants
South Lakeland District Council,http://opendatacommunities.org/id/district-council/south-lakeland,31/12/2021,Delivery Commercial Services,Culture and Related Serv,http://opendatacommunities.org/def/concept/finance/sercop/objective/104,Maysand Ltd,02912226,20-12-2021,0000172980,38232.55,0,Work completed as per Certificate 1,390000,Construction
South Lakeland District Council,http://opendatacommunities.org/id/district-council/south-lakeland,31/12/2021,Business Support Community Services,Cultural Environmental Regulatory & Planning Services,http://opendatacommunities.org/def/concept/finance/sercop/objective/104,CUMBRIA COUNTY COUNCIL,,13-12-2021,0000172579,38234.2,0,Tipping charges,908000,Public Bodies Council support services
South Lakeland District Council,http://opendatacommunities.org/id/district-council/south-lakeland,31/12/2021,Case Management People,Housing Services,http://opendatacommunities.org/def/concept/finance/sercop/objective/108,Holme House Farm Ltd,,20-12-2021,0000172903,40013.04,0,Holme Farm - Capacity Grant,250000,Housing
South Lakeland District Council,http://opendatacommunities.org/id/district-council/south-lakeland,31/12/2021,Case Management Account Mgmt,Cultural Environmental Regulatory & Planning Services,http://opendatacommunities.org/def/concept/finance/sercop/objective/104,CONTINENTAL LANDSCAPES LTD,2108452,06-12-2021,0000172467,51799.2,0,Parks Routine Maintenance for 2021-22,391310,Construction Open Spaces Construction
South Lakeland District Council,http://opendatacommunities.org/id/district-council/south-lakeland,31/12/2021,Business Support Community Services,Cultural Environmental Regulatory & Planning Services,http://opendatacommunities.org/def/concept/finance/sercop/objective/104,CUMBRIA COUNTY COUNCIL,,13-12-2021,0000172667,51858.24,0,Tipping charges,908000,Public Bodies Council support services
South Lakeland District Council,http://opendatacommunities.org/id/district-council/south-lakeland,31/12/2021,Case Management Account Mgmt,Planning and Development,,MORECAMBE BAY PARTNERSHIP,,13-12-2021,0000172805,70133.5,0,Coastal Communities Fund: Q1(of 8),201700,Financial Services Grants
South Lakeland District Council,http://opendatacommunities.org/id/district-council/south-lakeland,31/12/2021,ICT Group,Central Services,http://opendatacommunities.org/def/concept/finance/sercop/objective/102,PHOENIX SOFTWARE LTD,02548628,15-12-2021,0000172404,70733.78,0,Microsoft yearly Licencing as per,271600,ICT Software Customised & Bespoke
South Lakeland District Council,http://opendatacommunities.org/id/district-council/south-lakeland,31/12/2021,Case Management Account Mgmt,Cultural Environmental Regulatory & Planning Services,http://opendatacommunities.org/def/concept/finance/sercop/objective/104,Greenwich Leisure Ltd,,22-12-2021,0000172971,169927,0,Covid Support Payment,291400,Arts & Leisure Services Sport & Fitness
South Lakeland District Council,http://opendatacommunities.org/id/district-council/south-lakeland,31/12/2021,Case Management Account Mgmt,Central Services,http://opendatacommunities.org/def/concept/finance/sercop/objective/102,Caddick Construction (NW) Limited,,13-12-2021,0000172741,281835.25,0,Contract number NW127 - Refurbishment,391100,Construction Buildings
